fUSD/lending_fUSD_20240516
["ID","MTS","AMOUNT","RATE_DAILY","PERIOD"]
[327184363,1715883073536,-500.0,0.00010978,2]
[327184364,1715883073545,-500.0,0.00010978,2]
[327184365,1715883073555,-500.0,0.00010978,2]
[327184366,1715883073564,-500.0,0.00010978,2]
[327184367,1715883073574,-500.0,0.00010978,2]
[327184368,1715883073583,-500.0,0.00010978,2]
[327184369,1715883073593,-500.0,0.00010978,2]
[327184370,1715883073602,-500.0,0.00010978,2]
[327184371,1715883073611,-500.0,0.00010978,2]
[327184372,1715883073621,-500.0,0.00010978,2]
[327184373,1715883073630,-500.0,0.00010978,2]
[327184374,1715883073641,-500.0,0.00010978,2]
[327184375,1715883073650,-500.0,0.00010978,2]
[327184376,1715883073659,-500.0,0.00010978,2]
[327184377,1715883073668,-178.59179686,0.00010978,2]
[327184378,1715883073677,-500.0,0.00010978,2]
[327184379,1715883073687,-500.0,0.00010978,2]
[327184380,1715883073696,-500.0,0.00010978,2]
[327184381,1715883073705,-494.27577779,0.00010978,2]
[327184382,1715883073714,-500.0,0.00010978,2]
[327184383,1715883073724,-500.0,0.00010978,2]
[327184384,1715883073733,-500.0,0.00010978,2]
[327184385,1715883073743,-500.0,0.00010978,2]
[327184386,1715883073752,-389.92269641,0.00010978,2]
[327184387,1715883073762,-500.0,0.00010978,2]
[327184388,1715883073771,-500.0,0.00010978,2]
[327184389,1715883073782,-500.0,0.00010978,2]
[327184390,1715883073792,-500.0,0.00010978,2]
[327184391,1715883073801,-500.0,0.00010978,2]
[327184392,1715883073812,-500.0,0.00010978,2]
[327184393,1715883073821,-500.0,0.00010978,2]
[327184394,1715883073830,-500.0,0.00010978,2]
[327184395,1715883073840,-500.0,0.00010978,2]
[327184396,1715883073850,-500.0,0.00010978,2]
[327184397,1715883073859,-237.72,0.00010978,2]
[327184398,1715883073868,-628.02899053,0.00010978,2]
[327184399,1715883073878,-500.0,0.00010978,2]
[327184400,1715883073887,-500.0,0.00010978,2]
[327184401,1715883073896,-500.0,0.00010978,2]
[327184402,1715883073906,-500.0,0.00010978,2]
[327184403,1715883073915,-500.0,0.00010978,2]
[327184404,1715883073924,-500.0,0.00010978,2]
[327184405,1715883073933,-500.0,0.00010978,2]
[327184406,1715883073942,-500.0,0.00010978,2]
[327184407,1715883073952,-500.0,0.00010978,2]
[327184408,1715883073961,-500.0,0.00010978,2]
[327184409,1715883073970,-500.0,0.00010978,2]
[327184410,1715883073979,-500.0,0.00010978,2]
[327184411,1715883073989,-500.0,0.00010978,2]
[327184412,1715883073998,-500.0,0.00010978,2]
[327184413,1715883074007,-500.0,0.00010978,2]
[327184414,1715883074017,-182.25,0.00010978,2]
[327184415,1715883074026,-500.0,0.00010978,2]
[327184416,1715883074035,-349.4,0.00010978,2]
[327184417,1715883074045,-500.0,0.00010978,2]
[327184418,1715883074054,-500.0,0.00010978,2]
[327184419,1715883074063,-551.81,0.00010978,2]
[327184420,1715883074074,-616.71,0.00010978,2]
[327184421,1715883074083,-3616.45,0.00010978,2]
[327184422,1715883074092,-500.0,0.00010978,2]
[327184423,1715883074102,-541.4,0.00010978,2]
[327184424,1715883074111,-500.0,0.00010978,2]
[327184425,1715883074120,-500.0,0.00010978,2]
[327184426,1715883074129,-473.55,0.00010978,2]
[327184427,1715883074138,-500.0,0.00010978,2]
[327184428,1715883074148,-500.0,0.00010978,2]
[327184429,1715883074157,-500.0,0.00010978,2]
[327184430,1715883074166,-500.0,0.00010978,2]
[327184431,1715883074175,-500.0,0.00010978,2]
[327184432,1715883074185,-500.0,0.00010978,2]
[327184433,1715883074194,-500.0,0.00010978,2]
[327184434,1715883074203,-500.0,0.00010978,2]
[327184435,1715883074213,-500.0,0.00010978,2]
[327184436,1715883074222,-500.0,0.00010978,2]
[327184437,1715883074231,-500.0,0.00010978,2]
[327184438,1715883074240,-500.0,0.00010978,2]
[327184439,1715883074250,-500.0,0.00010978,2]
[327184440,1715883074259,-500.0,0.00010978,2]
[327184441,1715883074269,-500.0,0.00010978,2]
[327184442,1715883074280,-500.0,0.00010978,2]
[327184443,1715883074289,-429.7,0.00010978,2]
[327184444,1715883074299,-38.45826526,0.00010978,2]
[327184445,1715883074313,-461.54173474,0.00010978,2]
[327184446,1715883074322,-308.3,0.00010978,2]
[327184447,1715883074335,-159.7,0.00010978,2]
[327184448,1715883074346,-500.0,0.00010978,2]
[327184449,1715883074356,-47.45826526,0.00010978,2]
[327184450,1715883074638,-500.0,0.00010958,2]
[327184451,1715883074648,-500.0,0.00010958,2]
[327184452,1715883074657,-500.0,0.00010958,2]
[327184453,1715883074667,-12.91645352,0.00010958,2]
[327184454,1715883074683,-487.08354648,0.00010958,2]
[327184455,1715883074703,-500.0,0.00010958,2]
[327184456,1715883074716,-452.54173474,0.00010978,2]
[327184457,1715883074727,-189.4,0.00010978,2]
[327184458,1715883074738,-500.0,0.00010978,2]
[327184459,1715883074748,-500.0,0.00010978,2]
[327184460,1715883074758,-500.0,0.00010978,2]
[327184461,1715883074767,-500.0,0.00010978,2]
[327184462,1715883074779,-500.0,0.00010978,2]
[327184463,1715883074788,-500.0,0.00010978,2]
[327184464,1715883074797,-500.0,0.00010978,2]
[327184465,1715883074806,-500.0,0.00010978,2]
[327184466,1715883074817,-500.46,0.00010978,2]
[327184467,1715883074827,-305.28,0.00010978,2]
[327184468,1715883074836,-500.0,0.00010978,2]
[327184469,1715883074846,-500.0,0.00010978,2]
[327184470,1715883074855,-186.68792669,0.00010979,2]
[327184471,1715883074864,-1023.77916265,0.00010979,3]
[327184472,1715883074874,-2630.95611395,0.00010979,2]
[327184473,1715883074884,-1114.95825209,0.00010979,3]
[327184474,1715883074893,-387.66247867,0.00010979,2]
[327184475,1715883074902,-151.0,0.00010979,2]
[327184476,1715883074912,-151.0,0.00010979,2]
[327184477,1715883074922,-151.0,0.00010979,2]
[327184478,1715883074932,-288.0,0.00010997,2]
[327184479,1715883074942,-500.0,0.00010999,2]
[327184480,1715883074952,-500.0,0.00010999,2]
[327184481,1715883074962,-500.0,0.00010999,2]
[327184482,1715883074971,-500.0,0.00010999,2]
[327184483,1715883074981,-608.79,0.00010999,2]
[327184484,1715883074991,-1005.67,0.00010999,2]
[327184485,1715883075000,-500.0,0.00010999,2]
[327184486,1715883075010,-500.0,0.00010999,2]
[327184487,1715883075020,-500.0,0.00010999,2]
[327184488,1715883075031,-500.0,0.00010999,2]
[327184489,1715883075041,-1302.46,0.00010999,2]
[327184490,1715883075052,-500.0,0.00010999,2]
[327184491,1715883075062,-500.0,0.00010999,2]
[327184492,1715883075072,-500.0,0.00010999,2]
[327184493,1715883075082,-500.0,0.00010999,2]
[327184494,1715883075092,-500.0,0.00010999,2]
[327184495,1715883075102,-643.07,0.00010999,2]
[327184496,1715883075112,-500.0,0.00010999,2]
[327184497,1715883075121,-500.0,0.00010999,2]
[327184498,1715883075130,-500.0,0.00010999,2]
[327184499,1715883075139,-644.06,0.00010999,2]
[327184500,1715883075149,-500.0,0.00010999,2]
[327184501,1715883075159,-500.0,0.00010999,2]
[327184502,1715883075169,-500.0,0.00010999,2]
[327184503,1715883075179,-516.59,0.00010999,2]
[327184504,1715883075188,-500.0,0.00010999,2]
[327184505,1715883075198,-708.87,0.00010999,2]
[327184506,1715883075207,-500.0,0.00010999,2]
[327184507,1715883075217,-500.0,0.00010999,2]
[327184508,1715883075227,-538.58,0.00010999,2]
[327184509,1715883075236,-500.0,0.00010999,2]
[327184510,1715883075247,-34076.72797275,0.00011,2]
[327184511,1715883075279,-500.0,0.00010958,2]
[327184512,1715883075289,-4926.27202725,0.00011,2]
[327184513,1715883075298,-450.86896563,0.00011,2]
[327184514,1715883075308,-8114.0,0.00011,2]
[327184515,1715883075318,-17236.35900712,0.00011,2]
[327184516,1715883075331,-253.26847122,0.00011,2]
[327184517,1715883075345,-969.37252166,0.00011,2]
[327184518,1715883075354,-22.48547598,0.00011,2]
[327184519,1715883075366,-177.51452402,0.00011,2]
[327184520,1715883075377,-151.0,0.00011,2]
[327184521,1715883075386,-145.96914605,0.00011,2]
[327184522,1715883075398,-854.03085395,0.00011,2]
[327184523,1715883075408,-622.07414602,0.00011,2]
[327184524,1715883075740,-1301.02884,0.00011,2]
[327184525,1715883075752,-879.64186708,0.00011,2]
[327184526,1715883075819,150.0,8.219e-05,2]
[327184527,1715883075844,4.06,8.219e-05,2]
[327184528,1715883076081,-500.0,0.00010958,2]
[327184529,1715883076090,-500.0,0.00010958,2]
[327184530,1715883076100,-500.0,0.00010958,2]
[327184531,1715883076109,-603.02,0.00010958,2]
[327184532,1715883076119,-213.771552,0.00010959,2]
[327184533,1715883076128,-213.771552,0.00010967,2]
[327184534,1715883076138,-197.2551469,0.00011,2]
[327184535,1715883076147,-446.0,0.00011,2]
[327184536,1715883076157,-942.7,0.00011,2]
[327184537,1715883076167,-751.8,0.00011,2]
[327184538,1715883076176,-706.0,0.00011,2]
[327184539,1715883076186,-250.83906553,0.00011,2]
[327184540,1715883076195,-209.0,0.00011,2]
[327184541,1715883076205,-423.3799191,0.00011021,2]
[327184542,1715883076214,-8534.4251619,0.00011021,2]
[327184543,1715883076223,-806.0818749,0.00011021,2]
[327184544,1715883076232,-500.0,0.00011027,2]
[327184545,1715883076242,-500.0,0.00011027,2]
[327184546,1715883076251,-500.0,0.00011027,2]
[327184547,1715883076261,-502.2,0.00011027,2]
[327184548,1715883076270,-500.0,0.00011027,2]
[327184549,1715883076282,-1448.39,0.00011027,2]
[327184550,1715883076292,-601.13,0.00011027,2]
[327184551,1715883076302,-500.0,0.00011027,2]
[327184552,1715883076311,-500.0,0.00011027,2]
[327184553,1715883076321,-1342.12,0.00011027,2]
[327184554,1715883076332,-500.0,0.00011027,2]
[327184555,1715883076344,-504.55,0.00011027,2]
[327184556,1715883076354,-980.86,0.00011027,2]
[327184557,1715883076363,-500.0,0.00011027,2]
[327184558,1715883076373,-500.0,0.00011027,2]
[327184559,1715883076383,-500.0,0.00011027,2]
[327184560,1715883076392,-500.0,0.00011027,2]
[327184561,1715883076401,-3065.59,0.00011027,2]
[327184562,1715883076411,-500.0,0.00011027,2]
[327184563,1715883076424,-500.0,0.00011027,2]
[327184564,1715883076434,-854.37531612,0.00011028,2]
[327184565,1715883076443,-155.0,0.00011028,2]
[327184566,1715883076452,-3341.78822955,0.00011028,2]
[327184567,1715883076465,-19595.39294991,0.00011028,2]
[327184568,1715883076474,-500.0,0.00011028,2]
[327184569,1715883076483,-500.0,0.00011028,2]
[327184570,1715883076493,-500.0,0.00011028,2]
[327184571,1715883076503,-527.12066101,0.00011028,2]
[327184572,1715883076513,-500.0,0.00011028,2]
[327184573,1715883076523,-500.0,0.00011028,2]
[327184574,1715883076534,-493.07578186,0.00011028,2]
[327184575,1715883076543,-500.0,0.00011028,2]
[327184576,1715883076552,-500.0,0.00011028,2]
[327184577,1715883076562,-500.0,0.00011028,2]
[327184578,1715883076572,-500.0,0.00011028,2]
[327184579,1715883076581,-500.0,0.00011028,2]
[327184580,1715883076591,-500.0,0.00011028,2]
[327184581,1715883076600,-500.0,0.00011028,2]
[327184582,1715883076609,-500.0,0.00011028,2]
[327184583,1715883076619,-500.0,0.00011028,2]
[327184584,1715883076629,-500.0,0.00011028,2]
[327184585,1715883076638,-500.0,0.00011028,2]
[327184586,1715883076648,-500.0,0.00011028,2]
[327184587,1715883076658,-607.3969966,0.00011028,2]
[327184588,1715883076668,-510.49658467,0.00011028,2]
[327184589,1715883076677,-500.0,0.00011028,2]
[327184590,1715883076686,-500.0,0.00011028,2]
[327184591,1715883076696,-500.0,0.00011028,2]
[327184592,1715883076705,-151.0,0.00011028,2]
[327184593,1715883076716,-151.0,0.00011028,2]
[327184594,1715883076726,-195.42795821,0.00011028,2]
[327184595,1715883076735,-500.0,0.00011028,2]
[327184596,1715883076744,-500.0,0.00011028,2]
[327184597,1715883076753,-500.0,0.00011028,2]
[327184598,1715883076763,-500.0,0.00011028,2]
[327184599,1715883076772,-500.0,0.00011028,2]
[327184600,1715883076784,-500.0,0.00011028,2]
[327184601,1715883076792,-500.0,0.00011028,2]
[327184602,1715883076803,-500.0,0.00011028,2]
[327184603,1715883076814,-500.0,0.00011028,2]
[327184604,1715883076826,-500.0,0.00011028,2]
[327184605,1715883076835,-500.0,0.00011028,2]
[327184606,1715883076845,-500.0,0.00011028,2]
[327184607,1715883076855,-510.23367806,0.00011028,2]
[327184608,1715883076864,-290.33560155,0.00011028,2]
[327184609,1715883076874,-500.0,0.00011028,2]
[327184610,1715883076883,-500.0,0.00011028,2]
[327184611,1715883076894,-540.62,0.00011028,2]
[327184612,1715883076903,-551.81,0.00011028,2]
[327184613,1715883076914,-500.0,0.00011028,2]
[327184614,1715883076924,-3616.45,0.00011028,2]
[327184615,1715883076934,-500.0,0.00011028,2]
[327184616,1715883076944,-500.0,0.00011028,2]
[327184617,1715883076953,-500.0,0.00011028,2]
[327184618,1715883076964,-500.0,0.00011028,2]
[327184619,1715883076974,-500.0,0.00011028,2]
[327184620,1715883076983,-500.0,0.00011028,2]
[327184621,1715883076993,-500.0,0.00011028,2]
[327184622,1715883077002,-500.0,0.00011028,2]
[327184623,1715883077012,-500.0,0.00011028,2]
[327184624,1715883077021,-608.79,0.00011028,2]
[327184625,1715883077032,-500.0,0.00011028,2]
[327184626,1715883077042,-500.0,0.00011028,2]
[327184627,1715883077051,-1005.67,0.00011028,2]
[327184628,1715883077060,-500.0,0.00011028,2]
[327184629,1715883077069,-500.0,0.00011028,2]
[327184630,1715883077079,-500.0,0.00011028,2]
[327184631,1715883077089,-500.0,0.00011028,2]
[327184632,1715883077098,-500.0,0.00011028,2]
[327184633,1715883077107,-500.0,0.00011028,2]
[327184634,1715883077116,-500.0,0.00011028,2]
[327184635,1715883077126,-1302.46,0.00011028,2]
[327184636,1715883077135,-500.0,0.00011028,2]
[327184637,1715883077145,-500.0,0.00011028,2]
[327184638,1715883077155,-500.0,0.00011028,2]
[327184639,1715883077164,-500.0,0.00011028,2]
[327184640,1715883077174,-500.0,0.00011028,2]
[327184641,1715883077184,-500.0,0.00011028,2]
[327184642,1715883077193,-500.0,0.00011028,2]
[327184643,1715883077204,-500.0,0.00011028,2]
[327184644,1715883077214,-500.0,0.00011028,2]
[327184645,1715883077354,-587.88,0.00011028,2]
[327184646,1715883077364,-500.0,0.00011028,2]
[327184647,1715883077374,-500.0,0.00011028,2]
[327184648,1715883077384,-500.0,0.00011028,2]
[327184649,1715883077394,-500.0,0.00011028,2]
[327184650,1715883077404,-500.0,0.00011028,2]
[327184651,1715883077413,-500.0,0.00011028,2]
[327184652,1715883077426,-500.0,0.00011028,2]
[327184653,1715883077437,-615.3,0.00011028,2]
[327184654,1715883077446,-643.07,0.00011028,2]
[327184655,1715883077456,-500.0,0.00011028,2]
[327184656,1715883077466,-500.0,0.00011028,2]
[327184657,1715883077476,-500.0,0.00011028,2]
[327184658,1715883077485,-500.0,0.00011028,2]
[327184659,1715883077495,-500.0,0.00011028,2]
[327184660,1715883077505,-500.0,0.00011028,2]
[327184661,1715883077515,-500.0,0.00011028,2]
[327184662,1715883077524,-500.0,0.00011028,2]
[327184663,1715883077534,-500.0,0.00011028,2]
[327184664,1715883077544,-500.0,0.00011028,2]
[327184665,1715883077553,-516.59,0.00011028,2]
[327184666,1715883077562,-500.0,0.00011028,2]
[327184667,1715883077572,-708.87,0.00011028,2]
[327184668,1715883077581,-500.0,0.00011028,2]
[327184669,1715883077591,-500.0,0.00011028,2]
[327184670,1715883077600,-538.58,0.00011028,2]
[327184671,1715883077610,-500.0,0.00011028,2]
[327184672,1715883077620,-612.91,0.00011028,2]
[327184673,1715883077629,-249084.51978811,0.00011029,2]
[327184674,1715883078023,-582.0,0.00010958,2]
[327184675,1715883078033,-213.771552,0.00010959,2]
[327184676,1715883078043,-213.771552,0.00010967,2]
[327184677,1715883078053,-80602.05682768,0.00011029,2]
[327184678,1715883078063,-500.0,0.00011029,2]
[327184679,1715883078072,-180.0988804,0.00011029,2]
[327184680,1715883078082,-431.67,0.00011029,2]
[327184681,1715883078092,-500.0,0.00011029,2]
[327184682,1715883078102,-500.0,0.00011029,2]
[327184683,1715883078112,-500.0,0.00011029,2]
[327184684,1715883078123,-449.37186751,0.00011029,2]
[327184685,1715883078132,-500.0,0.00011029,2]
[327184686,1715883078143,-609.16,0.00011029,2]
[327184687,1715883078153,-500.0,0.00011029,2]
[327184688,1715883078162,-500.0,0.00011029,2]
[327184689,1715883078172,-500.0,0.00011029,2]
[327184690,1715883078182,-281.80846172,0.00011029,2]
[327184691,1715883078191,-365.61377436,0.00011029,2]
[327184692,1715883078202,-500.0,0.00011029,2]
[327184693,1715883078212,-500.0,0.00011029,2]
[327184694,1715883078222,-500.0,0.00011029,2]
[327184695,1715883078234,-500.0,0.00011029,2]
[327184696,1715883078243,-500.0,0.00011029,2]
[327184697,1715883078253,-423.09053456,0.00011029,2]
[327184698,1715883078263,-500.0,0.00011029,2]
[327184699,1715883078273,-500.0,0.00011029,2]
[327184700,1715883078285,-500.0,0.00011029,2]
[327184701,1715883078295,-500.0,0.00011029,2]
[327184702,1715883078305,-602.61059251,0.00011029,2]
[327184703,1715883078315,-500.0,0.00011029,2]
[327184704,1715883078325,-500.0,0.00011029,2]
[327184705,1715883078339,-500.0,0.00011029,2]
[327184706,1715883078351,-500.0,0.00011029,2]
[327184707,1715883078360,-500.0,0.00011029,2]
[327184708,1715883078371,-266.199742,0.00011029,2]
[327184709,1715883078382,-500.0,0.00011029,2]
[327184710,1715883078391,-500.0,0.00011029,2]
[327184711,1715883078402,-500.0,0.00011029,2]
[327184712,1715883078414,-500.0,0.00011029,2]
[327184713,1715883078423,-500.0,0.00011029,2]
[327184714,1715883078433,-500.0,0.00011029,2]
[327184715,1715883078443,-500.0,0.00011029,2]
[327184716,1715883078452,-500.0,0.00011029,2]
[327184717,1715883078462,-500.0,0.00011029,2]
[327184718,1715883078471,-500.0,0.00011029,2]
[327184719,1715883078480,-151.0,0.00011029,2]
[327184720,1715883078490,-500.0,0.00011029,2]
[327184721,1715883078499,-500.0,0.00011029,2]
[327184722,1715883078508,-500.0,0.00011029,2]
[327184723,1715883078518,-500.0,0.00011029,2]
[327184724,1715883078527,-311.61582648,0.00011029,2]
[327184725,1715883078538,-500.0,0.00011029,2]
[327184726,1715883078548,-500.0,0.00011029,2]
[327184727,1715883078558,-500.0,0.00011029,2]
[327184728,1715883078568,-500.0,0.00011029,2]
[327184729,1715883078577,-500.0,0.00011029,2]
[327184730,1715883078587,-500.0,0.00011029,2]
[327184731,1715883078596,-500.0,0.00011029,2]
[327184732,1715883078605,-500.0,0.00011029,2]
[327184733,1715883078615,-500.0,0.00011029,2]
[327184734,1715883078624,-536.70415129,0.00011029,2]
[327184735,1715883078634,-500.0,0.00011029,2]
[327184736,1715883078643,-500.0,0.00011029,2]
[327184737,1715883078652,-500.0,0.00011029,2]
[327184738,1715883078662,-500.0,0.00011029,2]
[327184739,1715883078671,-102.32212237,0.00011029,2]
[327184740,1715883078685,-397.67787763,0.00011029,2]
[327184741,1715883078694,-500.0,0.00011029,2]
[327184742,1715883078703,-500.0,0.00011029,2]
[327184743,1715883078713,-500.0,0.00011029,2]
[327184744,1715883078722,-500.0,0.00011029,2]
[327184745,1715883078732,-500.0,0.00011029,2]
[327184746,1715883078741,-500.0,0.00011029,2]
[327184747,1715883078750,-499.99950357,0.00011029,2]
[327184748,1715883078759,-500.0,0.00011029,2]
[327184749,1715883078768,-500.0,0.00011029,2]
[327184750,1715883078778,-500.0,0.00011029,2]
[327184751,1715883078788,-500.0,0.00011029,2]
[327184752,1715883078797,-500.0,0.00011029,2]
[327184753,1715883078807,-500.0,0.00011029,2]
[327184754,1715883078817,-500.0,0.00011029,2]
[327184755,1715883078828,-519.81337423,0.00011029,2]
[327184756,1715883078837,-500.0,0.00011029,2]
[327184757,1715883078847,-500.0,0.00011029,2]
[327184758,1715883078857,-500.0,0.00011029,2]
[327184759,1715883078866,-500.0,0.00011029,2]
[327184760,1715883078875,-500.0,0.00011029,2]
[327184761,1715883078884,-500.0,0.00011029,2]
[327184762,1715883078893,-500.0,0.00011029,2]
[327184763,1715883078902,-500.0,0.00011029,2]
[327184764,1715883078911,-500.0,0.00011029,2]
[327184765,1715883078920,-551.81,0.00011029,2]
[327184766,1715883078930,-250.89924457,0.00011029,2]
[327184767,1715883078942,-300.91075543,0.00011029,2]
[327184768,1715883078952,-551.81,0.00011029,2]
[327184769,1715883078961,-551.81,0.00011029,2]
[327184770,1715883078970,-678.74826709,0.00011029,2]
[327184771,1715883078981,-2937.70173291,0.00011029,2]
[327184772,1715883078991,-3616.45,0.00011029,2]
[327184773,1715883079000,-3616.45,0.00011029,2]
[327184774,1715883079011,-3616.45,0.00011029,2]
[327184775,1715883079020,-500.0,0.00011029,2]
[327184776,1715883079030,-592.1,0.00011029,2]
[327184777,1715883079039,-500.0,0.00011029,2]
[327184778,1715883079048,-500.0,0.00011029,2]
[327184779,1715883079058,-439.21661102,0.00011029,2]
[327184780,1715883079070,-60.78338898,0.00011029,2]
[327184781,1715883079079,-500.0,0.00011029,2]
[327184782,1715883079088,-528.26,0.00011029,2]
[327184783,1715883079097,-500.0,0.00011029,2]
[327184784,1715883079106,-500.0,0.00011029,2]
[327184785,1715883079115,-500.0,0.00011029,2]
[327184786,1715883079124,-233.92003063,0.00011029,2]
[327184787,1715883079133,-435.75876087,0.00011029,2]
[327184788,1715883080498,150.0,8.218e-05,2]
[327184789,1715883080523,150.0,8.218e-05,2]
[327184790,1715883080546,150.0,8.218e-05,2]
[327184791,1715883080568,150.0,8.218e-05,2]
[327184792,1715883080590,43.15941219,8.218e-05,2]
[327184801,1715883555635,154.06,8.219e-05,2]
[327185045,1715884183927,154.06,8.219e-05,2]
[327185048,1715884232109,-260.50514106,9.678e-05,2]
[327185049,1715884232119,-239.49485894,9.955e-05,2]
[327185050,1715884232130,-998.36514106,9.955e-05,2]
[327185051,1715884232139,-250.0,9.955e-05,2]
[327185052,1715884232149,-7.70697134,9.955e-05,2]
[327185053,1715884232160,-960.42655982,9.955e-05,2]
[327185054,1715884232173,-2568.53646884,9.955e-05,2]
[327185055,1715884232183,-176.48,9.985e-05,2]
[327185056,1715884232412,-384.32,9.988e-05,2]
[327185057,1715884232427,-2672.12717059,0.0001,2]
[327185058,1715884232439,-535.511,0.0001,2]
[327185059,1715884232467,-26.61430497,0.0001,2]
[327185060,1715884232477,-276.0566,0.0001078,2]
[327185061,1715884232487,-601.69164147,0.00010845,2]
[327185062,1715884232496,-89.70352561,0.00010849,2]
[327185063,1715884232507,-746.56164777,0.00010849,2]
[327185064,1715884232519,-40.16482662,0.00010849,2]
[327185065,1715884232528,-150.0,0.00010855,2]
[327185066,1715884232537,-479.13,0.00010858,2]
[327185067,1715884232546,-160.79206436,0.00010858,2]
[327185068,1715884232559,-11.45353886,0.00010858,2]
[327185069,1715884232569,-169.01570173,0.00010858,2]
[327185070,1715884232579,-158.79165808,0.00010858,2]
[327185071,1715884232588,-222.50266868,0.0001088,2]
[327185072,1715884232598,-5856.12677144,0.0001088,2]
[327185073,1715884232607,-151.0699967,0.00010936,2]
[327185074,1715884232617,-500.0,0.00010941,2]
[327185075,1715884232626,-150.0,0.0001095,2]
[327185076,1715884232635,-657.32631401,0.00010955,2]
[327185077,1715884232645,-289.23555328,0.00010955,2]
[327185078,1715884232655,-188.26123372,0.00010955,2]
[327185079,1715884232666,-156.4545868,0.00010955,2]
[327185080,1715884232677,-155.0,0.00010955,2]
[327185081,1715884232686,-1233.17593934,0.00010955,2]
[327185082,1715884238933,-654.9619,0.00010857,2]
[327185084,1715884238943,-178.4411819,0.00010858,2]
[327185086,1715884238952,-2313.31063863,0.00010955,2]
[327185088,1715884238963,-391.29175347,0.00010955,2]
[327185089,1715884238975,-487.66692959,0.00010955,2]
[327185090,1715884238985,-228.87211069,0.00010956,2]
[327185091,1715884238994,-3088.25281878,0.00010956,2]
[327185092,1715884239003,-523.0,0.00010957,2]
[327185093,1715884239012,-51350.34488684,0.00010957,2]
[327185094,1715884239024,-260424.26738263,0.00010957,2]
[327185095,1715884239163,-318.54331447,0.00010957,2]
[327185096,1715884239175,-529.82133345,0.00010957,2]
[327185097,1715884239240,-1391.18950319,0.00010957,2]
[327185098,1715884239251,-3129.58715822,0.00010957,2]
[327185099,1715884239262,-22618.46976701,0.00010957,2]
[327185100,1715884239274,-4839.39459304,0.00010957,2]
[327185101,1715884239414,-3062.67819403,0.00010957,2]
[327185102,1715884239427,-420.42973759,0.00010957,2]
[327185103,1715884239439,-17536.23838421,0.00010957,2]
[327185104,1715884239452,-14981.62758374,0.00010957,2]
[327185105,1715884239464,-3726.19972867,0.00010957,2]
[327185106,1715884240161,-6139.73353367,0.00010957,2]
[327185107,1715884240174,-1998.5,0.00010957,2]
[327185108,1715884240387,-1785.71493991,0.00010957,2]
[327185109,1715884240399,-800.33064608,0.00010957,2]
[327185110,1715884240619,-642.18873986,0.00010957,2]
[327185116,1715884243269,-524.53638538,0.000108,2]
[327185118,1715884243279,-162.34773389,0.00010957,2]
[327185122,1715884243528,-819.51633472,0.00010858,2]
[327185123,1715884243538,-155.88781257,0.00010957,2]
[327185124,1715884243549,-1299.7799031,0.00010957,2]
[327185125,1715884243562,-366.10737732,0.00010957,2]
[327185142,1715884243872,-32691.97268775,0.00010957,2]
[327185219,1715884246159,-160.9686328,0.00010858,2]